bitfinex-derivatives/quotes_ETHF0:USTF0_20251119
["timestamp","ask_amount","ask_price","bid_price","bid_amount"]
[1763513819570,1.2539639,3108.7,3108.6,0.2436]
[1763513822363,1.2539639,3108.7,3108.6,0.76501]
[1763513824273,1.2539639,3108.7,3108.6,0.2436]
[1763513825069,1.2539639,3108.7,3108.6,0.76501]
[1763513825675,0.34615617,3108.7,3108.6,0.76501]
[1763513825874,0.52135,3109.0,3108.9,0.2289]
[1763513826865,0.52135,3109.0,3108.9,0.75026]
[1763513827273,0.52135,3109.0,3108.9,0.2289]
[1763513827772,0.52135,3109.0,3108.9,0.75026]
[1763513828467,0.52135,3109.0,3108.9,0.2289]
[1763513832174,0.52371867,3109.1,3109.0,0.89864]
[1763513832374,0.52371867,3109.1,3109.0,0.3773]
[1763513834773,0.52371867,3109.1,3109.0,0.89864]
[1763513835078,0.52371867,3109.1,3109.0,0.3773]
[1763513835378,0.00238867,3109.1,3109.0,0.89864]
[1763513836174,0.52370867,3109.1,3109.0,0.3773]
[1763513837575,0.52370867,3109.1,3109.0,0.89864]
[1763513837978,0.00238867,3109.1,3109.0,0.89864]
[1763513839278,0.52370867,3109.1,3109.0,0.3773]
[1763513840185,0.52370867,3109.1,3109.0,0.89864]
[1763513840482,0.52370867,3109.1,3109.0,0.3773]
[1763513841183,1.2525176,3109.1,3109.0,0.3773]
[1763513841582,1.2525176,3109.1,3109.0,0.1484]
[1763513841886,0.52139,3108.7,3108.6,3.446]
[1763513842086,0.00238867,3109.1,3109.0,0.1379]
[1763513842287,0.73143478,3109.1,3109.0,0.1379]
[1763513842682,0.52141,3108.6,3108.5,0.1365]
[1763513843084,1.25045611,3108.6,3108.5,0.1365]
[1763513843294,1.25045611,3108.6,3108.5,0.3747]
[1763513844581,1.25045611,3108.6,3108.0,1.87907702]
[1763513844582,0.52146,3108.3,3108.0,1.87907702]
[1763513844787,0.72904611,3108.6,3108.0,0.1450261]
[1763513844788,0.52149,3108.1,3108.0,0.1450261]
[1763513844989,1.25085317,3108.1,3108.0,0.1450261]
[1763513850391,0.52158,3107.6,3107.5,0.1364]
[1763513851198,0.52158,3107.6,3107.5,0.3778]
[1763513851898,0.52158,3107.6,3107.5,1.49520091]
[1763513853899,0.52158,3107.6,3107.5,2.01679091]
[1763513855305,0.52156,3107.7,3107.6,0.76298]
[1763513855497,3.72929,3108.1,3108.0,0.2414]
[1763513855699,4.45470317,3108.1,3108.0,0.1429]
[1763513856299,3.72929,3108.1,3108.0,0.1429]
[1763513856800,4.45460663,3108.1,3108.0,0.1429]
[1763513858502,4.45460663,3108.1,3107.5,0.13917286]
[1763513858503,0.52158,3107.6,3107.5,0.13917286]
[1763513859799,3.72938,3107.6,3107.5,0.13917286]
[1763513860007,3.72938,3107.6,3107.5,0.00277286]
[1763513860206,3.72938,3107.6,3107.5,0.14567286]
[1763513863907,3.72938,3107.6,3107.5,0.38707286]
[1763513864295,3.72938,3107.6,3107.5,0.14567286]
[1763513864607,0.52158,3107.6,3107.5,0.14567286]
[1763513864814,3.72938,3107.6,3107.5,0.14567286]
[1763513865412,0.52158,3107.6,3107.5,0.14567286]
[1763513867908,0.52166,3107.1,3107.0,0.1379]
[1763513868998,0.52166,3107.1,3107.0,0.14108665]
[1763513869407,0.52166,3107.1,3107.0,0.38248665]
[1763513873813,1.24849863,3107.1,3107.0,0.38248665]
[1763513875912,1.24849863,3107.1,3107.0,0.14108665]
[1763513877505,1.24849863,3107.1,3107.0,0.38248665]
[1763513878606,3.21262493,3107.4,3107.3,0.2442]
[1763513878807,3.93992513,3107.4,3107.3,0.2442]
[1763513879008,1.25373513,3107.4,3107.3,0.2442]
[1763513879216,0.52163,3107.3,3107.2,1.35882805]
[1763513879418,1.2489302,3107.3,3107.2,1.35882805]
[1763513880820,1.24912643,3107.3,3107.2,1.35882805]
[1763513881722,0.52643493,3107.4,3107.3,0.2442]
[1763513882415,1.25395663,3107.4,3107.3,0.2442]
[1763513883011,0.73234663,3107.4,3107.3,0.2442]
[1763513883218,1.25395663,3107.4,3107.3,0.2442]
[1763513884017,0.52166,3107.1,3107.0,1.4999147]
[1763513884318,0.52166,3107.1,3107.0,0.14108665]
[1763513884819,0.52166,3107.1,3106.5,0.1379]
[1763513884820,0.52174,3106.6,3106.5,0.1379]
[1763513885522,1.24941839,3106.6,3106.5,0.1379]
[1763513885726,1.24941839,3106.6,3106.5,0.3821]
[1763513886014,1.2517304,3106.6,3106.5,1.49993624]
[1763513886217,1.25182508,3106.6,3106.5,1.49993624]
[1763513887518,0.00231201,3106.6,3106.5,2.02169624]
[1763513887734,0.52405201,3106.6,3106.5,1.49993624]
[1763513889328,0.00231201,3106.6,3106.5,1.49993624]
[1763513889527,0.52405201,3106.6,3106.5,1.49993624]
[1763513889718,0.52405201,3106.6,3106.5,2.02169624]
[1763513889920,0.00231201,3106.6,3106.5,2.02169624]
[1763513890115,0.00231201,3106.6,3106.5,1.49993624]
[1763513890324,0.52405201,3106.6,3106.5,1.49993624]
[1763513890926,1.25204937,3106.6,3106.5,1.49993624]
[1763513894215,1.1041,3106.8,3106.7,0.2442]
[1763513894419,2.35372509,3106.8,3106.7,0.2442]
[1763513895128,2.35769502,3106.8,3106.7,0.2442]
[1763513906138,2.35769502,3106.8,3106.7,0.2248]
[1763513907239,0.7591,3107.1,3107.0,0.88768]
[1763513907438,0.7591,3107.1,3107.0,2.02837762]
[1763513907735,0.52644493,3107.4,3107.3,0.2248]
[1763513908033,0.52644493,3107.4,3107.3,4.57329762]
[1763513908034,0.75234493,3107.4,3107.3,4.57329762]
[1763513908337,0.7553381,3107.4,3107.3,4.57329762]
[1763513909832,0.7553381,3107.4,3107.3,3.4326]
[1763513910033,0.74756,3107.1,3107.0,0.1412]
[1763513910232,0.74759,3106.9,3106.8,3.2078]
[1763513911236,0.74759,3106.9,3106.8,3.444]
[1763513911533,0.52168,3107.0,3106.8,5.10640762]
[1763513911739,0.52168,3107.0,3106.9,0.2362]
[1763513912538,0.2259,3107.1,3107.0,0.3743]
[1763513912837,0.74756,3107.1,3107.0,0.3743]
[1763513913934,0.86726,3107.2,3107.1,0.2362]
[1763513914437,0.3456,3107.2,3107.1,1.89855762]
[1763513915639,0.86724,3107.2,3107.1,1.89855762]
[1763513916748,0.3456,3107.2,3107.1,1.89855762]
[1763513918048,0.86724,3107.2,3107.1,1.89855762]
[1763513919643,0.86724,3107.2,3107.1,1.37689762]
[1763513920345,1.09314,3107.2,3107.1,1.37689762]
[1763513920545,1.09314,3107.2,3107.1,1.89855762]
[1763513922148,0.3456,3107.2,3107.1,1.89855762]
[1763513922444,0.86724,3107.2,3107.1,1.89855762]
[1763513922644,0.3456,3107.2,3107.1,1.89855762]
[1763513922840,0.5294281,3107.4,3107.3,0.2362]
[1763513923242,1.25675317,3107.4,3107.3,0.2362]
[1763513924044,1.48265317,3107.4,3107.3,0.2362]
[1763513926052,0.73514317,3107.4,3107.3,0.75783]
[1763513926238,1.25675317,3107.4,3107.3,0.75783]
[1763513926946,1.25675317,3107.4,3107.3,0.2362]
[1763513927145,1.48265317,3107.4,3107.3,0.2362]
[1763513929144,0.73514317,3107.4,3106.8,3.2078]
[1763513929351,0.74759,3106.9,3106.8,3.2078]
[1763513929546,1.47491507,3106.9,3106.8,3.2078]
[1763513933443,0.52174,3106.6,3106.5,0.37730819]
[1763513933644,0.74764,3106.6,3106.5,0.14110819]
[1763513933845,1.47529889,3106.6,3106.5,0.00320819]
[1763513937949,0.74773,3106.1,3106.0,0.1429]
[1763513938956,0.2259,3106.1,3106.0,0.14530617]
[1763513939155,0.2259,3106.1,3106.0,0.00240617]
[1763513939450,0.74773,3106.1,3106.0,0.00240617]
[1763513939853,0.74773,3106.1,3106.0,0.14240617]
[1763513940648,0.74773,3106.1,3106.0,0.00240617]
[1763513940852,0.74773,3106.1,3105.1,2.31028426]
[1763513940853,0.52198,3105.2,3105.1,3.2078]
[1763513941054,1.25452255,3105.5,3104.7,3.2078]
[1763513941247,0.75958,3104.6,3104.5,0.1381]
[1763513941452,0.75961,3104.4,3104.3,3.2078]
[1763513941652,0.75971,3103.9,3103.8,3.4496]
[1763513941852,0.23999265,3103.9,3103.8,3.45314104]
[1763513942249,0.00249265,3103.9,3103.8,3.45314104]
[1763513942852,0.00249265,3103.9,3103.8,0.24534104]
[1763513943058,0.23999265,3103.9,3103.8,0.24534104]
[1763513944154,0.76219265,3103.9,3103.8,0.00354104]
[1763513944356,0.75973,3103.7,3103.6,0.2418]
[1763513945157,0.52226,3103.5,3103.4,3.2078]
[1763513945459,0.75976,3103.5,3103.4,3.21074109]
[1763513945956,0.75973,3103.7,3103.6,0.2418]
[1763513946356,0.2375,3103.5,3103.4,3.21074109]
[1763513946962,0.2375,3103.5,3103.4,3.45254109]
[1763513947565,0.00483294,3103.8,3103.7,0.2418]
[1763513947756,0.76454294,3103.8,3103.7,0.2418]
[1763513948360,0.00483294,3103.8,3103.7,0.2418]
[1763513948571,0.52704294,3103.8,3103.7,0.2418]
[1763513948864,0.76454294,3103.8,3103.7,0.2418]
[1763513949656,0.24233294,3103.8,3103.7,0.2418]
[1763513949865,0.00483294,3103.8,3103.7,0.2418]
[1763513950364,0.24233294,3103.8,3103.7,0.2418]
[1763513950564,0.00483294,3103.8,3103.7,0.2418]
[1763513951359,0.52704294,3103.8,3103.7,0.2418]
[1763513952563,0.86876,3103.5,3103.4,0.00294109]
[1763513952753,0.86876,3103.5,3102.8,0.2418]
[1763513952754,0.75987,3102.9,3102.8,0.2418]
[1763513952953,3.3168,3103.5,3102.6,3.2078]
[1763513952954,0.2375,3103.1,3103.0,0.3818]
[1763513953158,0.7599,3102.7,3102.6,3.4496]
[1763513953358,0.2375,3102.7,3102.6,3.2078]
[1763513953674,0.7599,3102.7,3102.6,3.21054048]
[1763513954183,0.7599,3102.7,3102.6,3.45234048]
[1763513954972,0.109,3103.5,3103.0,0.3818]
[1763513955275,3.21029265,3103.9,3103.2,0.2418]
[1763513955690,0.2375,3103.6,3103.5,0.3818]
[1763513955988,0.52229,3103.4,3103.3,0.2418]
[1763513956376,0.52227,3103.5,3103.4,0.2418]
[1763513956877,0.75977,3103.5,3103.4,0.2418]
[1763513957181,3.21029265,3103.9,3103.7,0.2418]
[1763513957182,0.52705294,3103.8,3103.7,0.2418]
[1763513957375,0.75975,3103.6,3103.5,0.3818]
[1763513960578,0.00483294,3103.8,3103.7,0.2418]
[1763513960779,0.52704294,3103.8,3103.7,0.2418]
[1763513960983,0.00483294,3103.8,3103.7,0.2418]
[1763513961581,0.52704294,3103.8,3103.7,0.2418]
[1763513961785,0.00483294,3103.8,3103.7,0.76403]
[1763513961984,0.52704294,3103.8,3103.7,0.2418]
[1763513962193,0.76454294,3103.8,3103.7,0.2418]
[1763513963784,0.2438,3103.5,3103.1,0.52238]
[1763513963977,0.00483294,3103.8,3103.2,0.2326]
[1763513963978,0.76616,3103.3,3103.2,0.2326]
[1763513964675,0.76613,3103.5,3103.4,0.2326]
[1763513964881,0.76608,3103.7,3103.6,0.2326]
[1763513965187,0.00483294,3103.8,3103.7,0.2326]
[1763513965188,0.24863294,3103.8,3103.7,0.2326]
[1763513965777,0.77089294,3103.8,3103.7,0.2326]
[1763513968083,1.49911966,3103.8,3103.7,0.2326]
[1763513968393,0.7595,3103.6,3103.5,0.3935]
[1763513968590,1.48778134,3103.6,3103.5,0.3935]
[1763513971479,0.52231,3103.5,3103.4,3.2078]
[1763513971684,0.2372,3103.1,3103.0,3.5934]
[1763513971887,0.72828134,3103.1,3103.0,4.1158]
[1763513972282,1.33616134,3103.1,3103.0,3.5934]
[1763513972484,2.49251238,3103.1,3103.0,3.3478]
[1763513972686,0.60795,3102.7,3102.6,0.00274048]
[1763513972994,0.52245,3102.7,3102.6,0.24834048]
[1763513973194,1.25073134,3102.7,3102.6,0.24834048]
[1763513973800,1.33623134,3102.7,3102.6,0.24834048]
[1763513977192,1.33623134,3102.7,3102.6,0.00274048]
[1763513979295,0.60812,3101.7,3101.6,0.2456]
[1763513979890,0.60813,3101.6,3101.5,0.149]
[1763513980292,0.0855,3101.6,3101.5,0.67165]
[1763513980495,0.60812,3101.7,3101.6,0.2456]
[1763513980694,0.6104785,3101.7,3101.6,0.2456]
[1763513980900,0.60813,3101.6,3101.5,0.15259379]
[1763513981297,0.52271,3101.2,3101.0,0.149]
[1763513981497,0.60822,3101.1,3101.0,0.149]
[1763513981998,0.0855,3101.1,3101.0,0.67173]
[1763513982206,0.0023585,3101.7,3101.0,0.67173]
[1763513982407,0.60821,3101.2,3101.1,0.2456]
[1763513983294,0.60821,3101.2,3101.0,0.15181287]
[1763513983295,0.60822,3101.1,3101.0,0.00281287]
[1763513983703,3.81602,3101.1,3101.0,0.00281287]
[1763513983895,4.54194159,3101.1,3101.0,0.00281287]
[1763513984292,4.54194159,3101.1,3101.0,1.287e-05]
[1763513985409,4.54047917,3101.1,3101.0,1.287e-05]
[1763513985797,0.60822,3101.1,3101.0,0.14901287]
[1763513986707,0.60542,3101.1,3101.0,0.14901287]
[1763513987908,0.60542,3101.1,3101.0,0.39461287]
[1763513988103,0.0827,3101.1,3101.0,0.39461287]
[1763513988305,0.0827,3101.1,3101.0,0.91734287]
[1763513988706,0.52267,3101.4,3101.1,0.52271]
[1763513989104,3.2905,3101.5,3101.4,0.2456]
[1763513990111,3.81315,3101.5,3101.4,0.2456]
[1763513990909,3.81315,3101.5,3101.4,0.76827]
[1763513991104,3.81315,3101.5,3101.4,0.2456]
[1763513991501,3.2905,3101.5,3101.4,0.2456]
[1763513991915,3.81315,3101.5,3101.4,0.2456]
[1763513992602,3.81315,3101.5,3101.4,0.76827]
[1763513992799,0.5249785,3101.7,3101.4,0.76827]
[1763513993008,0.0023585,3101.7,3101.6,0.76823]
[1763513993601,0.0850585,3101.7,3101.6,0.76823]
[1763513994108,0.0023585,3101.7,3101.6,0.76823]
[1763513994304,0.0023585,3101.7,3101.6,0.2456]
[1763513994610,0.0023585,3101.7,3101.6,0.76823]
[1763513995412,0.5249785,3101.7,3101.6,0.2456]
[1763513995613,0.0023585,3101.7,3101.6,0.76823]
[1763513996209,0.5249785,3101.7,3101.6,0.2456]
[1763513996415,0.5249785,3101.7,3101.6,0.76823]
[1763513996714,0.0023585,3101.7,3101.6,0.76823]
[1763514000316,0.00483294,3102.0,3101.9,0.75178]
[1763514000618,0.00483294,3102.0,3101.9,3.95958]
[1763514001012,0.0898,3103.1,3103.0,0.3709]
[1763514001211,0.61218,3103.1,3103.0,0.3709]
[1763514001412,0.0898,3102.8,3102.5,2.40311806]
[1763514001613,0.0898,3102.8,3102.7,0.2292]
[1763514001815,0.0898,3102.8,3102.7,0.75165]
[1763514002010,0.62096959,3103.1,3103.0,0.3709]
[1763514002210,0.09858959,3103.1,3102.5,0.1417]
[1763514002411,0.61228,3102.5,3102.4,0.00483294]
[1763514002610,0.61228,3102.5,3101.5,3.3568]
[1763514002611,0.0898,3101.6,3101.5,3.3568]
[1763514002814,0.61243,3101.6,3101.5,3.3568]
[1763514003014,0.61243,3101.6,3101.5,3.586]
[1763514003420,0.61243,3101.6,3101.5,3.3568]
[1763514003619,0.0898,3101.6,3101.5,3.87945]
[1763514003920,0.0898,3101.6,3101.5,4.10865]
[1763514004316,0.0898,3101.6,3101.5,3.3568]
[1763514004516,0.0898,3101.6,3101.5,4.10865]
[1763514004917,0.5226,3101.8,3101.5,4.10865]
[1763514005117,3.73039,3101.9,3101.8,0.2292]
[1763514005517,0.52262,3101.7,3101.6,0.2292]
[1763514005718,0.0898,3101.6,3101.5,3.3568]
[1763514005919,0.0898,3101.6,3101.5,3.87945]
[1763514006321,0.61243,3101.6,3101.5,0.149]
[1763514007324,0.61248,3101.3,3101.1,3.2078]
[1763514007520,0.61248,3101.3,3101.1,3.73051]
[1763514007717,0.61248,3101.3,3101.2,0.2292]
[1763514008616,0.0898,3101.3,3101.2,0.2292]
[1763514008817,0.6125,3101.2,3101.1,3.2078]
[1763514009214,0.0898,3101.2,3101.1,3.95972]
[1763514010232,0.0898,3101.2,3101.0,0.14171287]
[1763514010434,0.6126,3100.6,3100.5,0.1417]
[1763514010736,3.8204,3100.6,3100.5,0.1417]
[1763514010930,0.52288,3100.2,3100.1,0.2292]
[1763514011126,3.2078,3100.6,3100.1,0.2292]
[1763514011332,0.61269,3100.1,3100.0,0.3917]
[1763514011631,0.61269,3100.1,3100.0,0.3944144]
[1763514011832,0.0898,3100.1,3100.0,0.3944144]
[1763514012234,3.2078,3100.2,3100.1,0.2292]
[1763514012741,3.73067,3100.2,3100.1,0.2292]
[1763514013237,0.00388302,3100.6,3100.1,0.75209]
[1763514013430,0.09368302,3100.6,3100.5,0.1417]
[1763514013625,4.46164725,3100.6,3100.5,0.3709]
[1763514013839,1.34364725,3100.6,3100.5,0.3709]
[1763514014029,0.61269,3100.1,3100.0,0.3944144]
[1763514014839,0.61269,3100.1,3100.0,0.2527144]
[1763514015834,0.0898,3100.1,3100.0,0.3944144]
[1763514016135,0.52289,3100.2,3100.0,0.6236144]
[1763514016334,11.01468302,3100.6,3100.1,0.2292]
[1763514016534,1.24920588,3100.5,3100.4,0.2292]
[1763514016734,0.52282,3100.5,3100.4,0.2292]
[1763514017438,0.61262,3100.5,3100.4,0.2292]
[1763514017638,0.61268,3100.2,3100.0,0.3944144]
[1763514017829,0.52289,3100.1,3100.0,0.3944144]
[1763514018033,0.52287,3100.2,3100.1,0.2292]
[1763514018541,0.52284,3100.4,3100.1,0.75208]
[1763514018737,0.52287,3100.3,3100.2,0.2292]
[1763514019137,3.2078,3100.5,3100.2,0.2292]
[1763514019437,0.52285,3100.4,3100.3,0.2292]
[1763514019630,3.2078,3100.5,3100.4,0.2292]
[1763514019840,0.00388302,3100.6,3100.5,0.89372]
[1763514021439,0.52668302,3100.6,3100.5,0.3709]
[1763514022139,0.00388302,3100.6,3100.5,0.89372]
[1763514022340,3.2078,3101.3,3101.1,0.2245]
[1763514022537,0.0938,3100.1,3100.0,0.2527144]
[1763514022739,3.858,3100.2,3099.2,3.2078]
[1763514023041,0.52774294,3100.0,3099.7,0.2245]
[1763514023339,3.2078,3099.8,3099.7,0.2245]
[1763514024148,3.21025079,3099.8,3099.7,0.22743967]
[1763514024849,3.21025079,3099.8,3099.7,0.00293967]
[1763514025240,3.94291099,3099.8,3099.7,0.00293967]
[1763514025547,3.21025079,3099.8,3099.7,0.00293967]
[1763514027047,0.52314,3098.6,3098.5,0.1396]
[1763514027250,0.52331,3097.7,3097.5,0.1396]
[1763514027544,3.2078,3097.6,3097.5,0.1396]
[1763514027948,3.21085438,3097.6,3097.5,0.14273905]
[1763514028141,3.2078,3098.5,3098.0,0.14]
[1763514028341,0.52328,3097.8,3097.5,0.14273905]
[1763514028650,0.52328,3097.8,3097.5,0.37153905]
[1763514028956,3.2078,3097.6,3097.5,0.37153905]
[1763514029246,3.73501435,3097.6,3097.5,0.14273905]
[1763514029547,3.88441435,3097.6,3097.5,0.14273905]
[1763514029743,3.88441435,3097.6,3097.5,0.00313905]
[1763514030056,3.36110435,3097.6,3097.5,0.00313905]
[1763514030353,3.21170435,3097.6,3097.5,0.14313905]
[1763514030544,3.2078,3098.2,3098.1,0.2288]
[1763514031953,3.21131892,3098.2,3098.1,0.2288]
[1763514033945,0.00484097,3098.5,3098.1,0.2288]
[1763514034148,0.52304,3099.2,3099.0,0.14]
[1763514034345,3.2078,3099.5,3099.0,0.14]
[1763514034346,0.52303,3099.3,3099.0,0.14]
[1763514034545,3.2078,3099.5,3099.0,0.14]
[1763514034744,3.2078,3099.5,3099.0,0.66306]
[1763514034945,3.73450241,3099.5,3099.1,0.52305]
[1763514035146,0.52301,3099.4,3099.0,0.14484097]
[1763514035346,0.52303,3099.3,3099.0,0.66791097]
[1763514035551,3.73450241,3099.5,3099.1,0.52305]
[1763514035955,3.21151241,3099.5,3099.1,0.52305]
[1763514036347,0.52301,3099.4,3099.0,0.14484097]
[1763514036544,3.21151241,3099.5,3099.4,0.2288]
[1763514036745,0.00371241,3099.5,3099.4,0.2288]
[1763514037053,0.00484097,3099.6,3099.5,0.89179]
[1763514037550,3.2078,3100.0,3099.9,0.75172]
[1763514037853,1.73241319,3101.3,3100.0,0.14]
[1763514037854,3.2078,3100.6,3100.0,0.14]
[1763514038050,3.21026824,3100.6,3100.0,0.14397664]
[1763514038251,3.21026824,3100.6,3100.4,0.52283]
[1763514038649,0.52288,3100.2,3100.0,0.14397664]
[1763514038952,0.1579,3100.1,3100.0,0.00397664]
[1763514039157,0.1579,3099.5,3099.4,3.2078]
[1763514039359,0.52296,3099.7,3099.4,3.7308]
[1763514039562,0.52296,3099.7,3099.5,0.14]
[1763514039857,0.52296,3099.7,3099.5,0.66299]
[1763514040046,0.52296,3099.7,3099.5,0.14]
[1763514040457,0.52295,3099.7,3099.5,0.66568957]
[1763514040858,3.2078,3099.8,3099.5,0.14269957]
[1763514041052,3.2078,3099.8,3099.7,0.75175]
[1763514041253,3.3657,3099.8,3099.5,0.14269957]
[1763514041455,3.2078,3099.8,3099.5,0.14269957]
[1763514041756,3.2078,3099.8,3099.7,0.75175]
[1763514042954,0.52284,3100.4,3100.3,0.75164]
[1763514043157,3.2078,3100.4,3100.3,0.75164]
[1763514043357,0.00246824,3100.6,3099.5,0.14269957]
[1763514043358,0.52527824,3100.6,3100.5,0.52282]
[1763514043659,0.24666824,3100.6,3100.5,0.52282]
[1763514043962,0.00246824,3100.6,3100.5,0.89162]
[1763514044557,0.00246824,3100.6,3100.5,0.75162]
[1763514044961,0.00246824,3100.6,3100.5,0.89162]
[1763514046861,3.2078,3101.2,3101.1,0.75152]
[1763514047466,3.2078,3101.2,3100.7,3.2078]
[1763514047772,0.2442,3100.9,3100.8,0.52277]
[1763514048165,0.24802047,3100.9,3100.8,0.52277]
[1763514048468,0.00382047,3100.9,3100.8,0.52277]
[1763514048662,0.00382047,3100.9,3100.5,0.00484097]
[1763514048864,0.00382047,3100.9,3100.8,0.75157]
[1763514049260,0.00382047,3100.9,3100.8,0.2288]
[1763514049464,0.00382047,3100.9,3100.8,0.75157]
[1763514052272,0.76697,3100.8,3100.7,3.73058]
[1763514052770,0.2442,3100.8,3100.7,3.73058]
[1763514053069,0.00382047,3100.9,3100.8,0.75157]
[1763514053874,0.00382047,3100.9,3100.8,0.2288]
[1763514054166,0.77077047,3100.9,3100.8,0.2288]
[1763514054464,0.77077047,3100.9,3100.8,0.75157]
[1763514054664,0.77077047,3100.9,3100.8,0.2288]
[1763514054863,0.77077047,3100.9,3100.8,0.75157]
[1763514055465,0.24802047,3100.9,3100.8,0.75157]
[1763514055967,0.77077047,3100.9,3100.8,0.75157]
[1763514056267,0.24802047,3100.9,3100.8,0.75157]
[1763514056969,0.76697,3100.8,3100.7,3.73058]
[1763514057269,0.2442,3100.6,3100.5,0.75646097]
[1763514057461,3.45432047,3100.9,3100.8,0.52277]
[1763514057666,3.97707047,3100.9,3100.8,0.52277]
[1763514059075,0.76549,3100.8,3100.7,0.52278]
[1763514059771,0.2427,3100.8,3100.7,0.75548]
[1763514059973,0.76547,3100.8,3100.7,0.52277]
[1763514060172,0.2427,3100.8,3100.7,0.52277]
[1763514060677,3.21162047,3100.9,3100.8,0.75547]
[1763514060872,0.52279,3100.7,3100.5,0.00484097]
[1763514061478,0.7655,3100.6,3100.5,0.00484097]
[1763514063268,3.9733,3100.6,3100.5,0.00484097]
[1763514063468,0.3867,3100.0,3099.9,3.73071]
[1763514063676,0.9096,3100.0,3099.9,3.2078]
[1763514063875,0.76567,3099.6,3099.5,3.21049957]
[1763514064666,0.2427,3099.6,3099.5,3.73348957]
[1763514064871,0.2427,3099.6,3099.5,3.21049957]
[1763514065067,3.73067,3100.2,3099.5,3.34629957]
[1763514065273,3.73069,3100.1,3099.9,0.52292]
[1763514065479,3.4505,3100.1,3100.0,0.7556]
[1763514065675,0.144,3100.5,3100.2,0.52286]
[1763514065881,0.2427,3100.3,3100.2,0.52286]
[1763514066080,0.2427,3100.3,3099.5,3.34629957]
[1763514066081,0.52287,3100.2,3099.5,3.34629957]
[1763514066280,3.2078,3100.1,3100.0,0.5229]
[1763514066486,0.2427,3100.2,3100.1,0.52288]
[1763514066776,0.76557,3100.2,3099.5,3.34629957]
[1763514066977,0.52289,3100.1,3099.5,3.34629957]
[1763514067172,0.2427,3099.6,3099.5,3.21049957]
[1763514067367,4.71740862,3099.6,3099.5,0.00269957]
[1763514067980,0.76572,3099.3,3099.2,0.00484097]
[1763514069076,1.50913563,3099.3,3099.2,0.00793272]
[1763514069477,0.2427,3098.6,3098.5,0.52315]
[1763514069670,0.2427,3098.6,3098.5,0.2327]
[1763514070478,0.00268927,3098.6,3098.5,0.76001774]
[1763514070876,0.00268927,3098.6,3098.5,0.23685774]
[1763514071184,0.52582927,3098.6,3098.5,0.23685774]
[1763514071482,0.00268927,3098.6,3098.5,0.89581774]
[1763514071684,0.00268927,3098.6,3098.5,0.76001774]
[1763514072079,0.00268927,3098.6,3098.5,0.89581774]
[1763514072674,0.52582927,3098.6,3098.5,0.37265774]
[1763514072876,0.52582927,3098.6,3098.5,0.23685774]
[1763514073182,0.76852927,3098.6,3098.5,0.00415774]
[1763514075190,3.97632927,3098.6,3098.5,0.00415774]
[1763514076690,0.76596,3097.9,3097.8,3.2078]
[1763514077496,0.2427,3097.9,3097.8,3.4405]
[1763514077691,0.2427,3097.9,3097.8,3.21063028]
[1763514077989,0.2427,3097.9,3097.8,3.96660028]
[1763514078890,0.76596,3097.9,3097.8,3.44333028]
[1763514079286,0.76596,3097.9,3097.8,3.96660028]
[1763514079885,3.2078,3098.2,3097.8,3.44333028]
[1763514080191,0.76587,3098.4,3098.3,0.2327]
[1763514080489,3.2078,3098.4,3098.3,0.75589]
[1763514082297,0.00268927,3098.6,3098.5,0.75586]
[1763514082488,0.00268927,3098.6,3098.5,4.10516]
[1763514083091,0.00268927,3098.6,3098.5,4.10656]
[1763514084196,0.00268927,3098.6,3098.0,5.8738]
[1763514084197,0.2436,3098.5,3098.1,3.2078]
[1763514084402,0.52317,3098.4,3098.3,0.75727]
[1763514084896,0.76682,3098.1,3097.8,0.00283028]
[1763514085096,3.2078,3098.4,3097.8,0.23693028]
[1763514085097,0.76686,3097.9,3097.8,0.23693028]
[1763514085300,0.76686,3097.9,3097.8,0.00283028]
[1763514085801,0.76686,3097.9,3097.8,0.52610028]
[1763514085999,0.76686,3097.9,3097.8,0.76020028]
[1763514086202,0.2436,3097.9,3097.8,0.76020028]
[1763514086398,0.76686,3097.9,3097.8,0.00283028]
[1763514087096,3.73097,3098.4,3098.3,0.2341]
[1763514087297,3.97457,3098.4,3098.3,0.2341]
[1763514087599,0.52319,3098.3,3098.2,0.76829]
[1763514087789,3.95627,3098.4,3098.3,0.52319]
[1763514087994,0.74852,3098.1,3098.0,0.52324]
[1763514088703,0.74852,3098.1,3097.8,0.00283028]
[1763514089105,0.74852,3098.1,3098.0,0.52324]
[1763514089499,0.2253,3098.1,3098.0,0.76834]
[1763514089703,0.74851,3098.2,3098.1,0.2451]
[1763514089904,0.74852,3098.1,3098.0,0.52323]
[1763514090104,0.74852,3098.1,3098.0,0.76833]
[1763514090604,0.2253,3098.3,3098.2,0.76831]
[1763514091404,3.2078,3098.8,3098.5,0.3807]
[1763514091606,3.73091,3098.8,3098.7,0.2451]
[1763514091812,3.2078,3098.8,3098.7,0.76822]
[1763514091998,3.2078,3099.3,3098.6,3.2078]
[1763514092304,0.74836,3099.1,3099.0,0.52307]
[1763514092499,0.52781097,3099.6,3099.0,3.3434]
[1763514092799,0.00819532,3099.6,3099.5,0.90369]
[1763514093702,0.00819532,3099.6,3099.5,0.3807]
[1763514093895,0.53116532,3099.6,3099.5,0.3807]
[1763514094094,0.52302,3099.3,3099.2,0.52788097]
[1763514094304,0.52302,3099.3,3099.2,0.00484097]
[1763514094305,3.95612,3099.3,3099.2,0.00484097]
[1763514095007,4.69909258,3099.3,3099.2,0.00484097]
[1763514097304,0.52312,3098.7,3098.6,3.2078]
[1763514097509,0.2253,3098.4,3098.3,0.52318]
[1763514097705,0.2253,3098.4,3098.1,3.2078]
[1763514097706,0.52314,3098.7,3098.5,0.52315]
[1763514097905,0.52312,3098.7,3098.4,0.52316]
[1763514098209,0.52315,3098.6,3098.4,0.52316]
[1763514098603,0.52312,3098.8,3098.2,0.00484097]
[1763514098811,0.74509607,3098.7,3098.6,0.76824]
[1763514099002,0.52312,3098.7,3098.6,0.2451]
[1763514099203,0.74844,3098.6,3098.5,0.1356]
[1763514099406,0.2253,3098.6,3098.5,0.65876]